fUSD/lending_fUSD_20250302
["ID","MTS","AMOUNT","RATE_DAILY","PERIOD"]
[355141722,1740934295335,-593.67,0.00028016,2]
[355141723,1740934295346,-500.0,0.00028016,2]
[355141724,1740934295358,-500.0,0.00028016,2]
[355141725,1740934295369,-500.0,0.00028016,2]
[355141726,1740934295381,-788.64,0.00028016,2]
[355141727,1740934295392,-631.11,0.00028016,2]
[355141728,1740934295404,-3199.91,0.00028016,2]
[355141729,1740934295416,-500.0,0.00028016,2]
[355141730,1740934295429,-500.0,0.00028016,2]
[355141731,1740934295441,-200.0,0.00028016,2]
[355141732,1740934295452,-500.0,0.00028016,2]
[355141733,1740934295463,-1556.3,0.00028016,2]
[355141734,1740934295474,-726.48,0.00028016,2]
[355141735,1740934295484,-500.0,0.00028016,2]
[355141736,1740934295494,-503.65416867,0.00028016,2]
[355141737,1740934295504,-500.0,0.00028016,2]
[355141738,1740934295513,-500.0,0.00028016,2]
[355141739,1740934295527,-500.0,0.00028016,2]
[355141740,1740934295538,-531.3,0.00028016,2]
[355141741,1740934295548,-500.0,0.00028016,2]
[355141742,1740934295559,-500.0,0.00028016,2]
[355141743,1740934295570,-2236.18,0.00028016,2]
[355141744,1740934295581,-853.87,0.00028016,2]
[355141745,1740934295592,-500.0,0.00028016,2]
[355141746,1740934295602,-521.30470343,0.00028016,2]
[355141747,1740934295613,-500.0,0.00028016,2]
[355141748,1740934295624,-500.0,0.00028016,2]
[355141749,1740934295635,-500.0,0.00028016,2]
[355141750,1740934295647,-1556.69,0.00028016,2]
[355141751,1740934295659,-1959.36,0.00028016,2]
[355141752,1740934295671,-500.0,0.00028016,2]
[355141753,1740934295706,-639.1,0.00028016,2]
[355141754,1740934295731,-500.0,0.00028016,2]
[355141755,1740934295761,-1522.47,0.00028016,2]
[355141756,1740934295826,-633.68,0.00028016,2]
[355141757,1740934295895,-500.0,0.00028016,2]
[355141758,1740934295961,-500.0,0.00028016,2]
[355141759,1740934295999,-537.17,0.00028016,2]
[355141760,1740934296013,-500.0,0.00028016,2]
[355141761,1740934296030,-500.0,0.00028016,2]
[355141762,1740934296041,-694.32,0.00028016,2]
[355141763,1740934296052,-500.0,0.00028016,2]
[355141764,1740934296064,-500.0,0.00028016,2]
[355141765,1740934296076,-500.0,0.00028016,2]
[355141766,1740934296089,-1357.3,0.00028016,2]
[355141767,1740934296100,-500.0,0.00028016,2]
[355141768,1740934296112,-615.16,0.00028016,2]
[355141769,1740934296123,-500.0,0.00028016,2]
[355141770,1740934296130,-500.0,0.00028016,2]
[355141771,1740934296140,-500.0,0.00028016,2]
[355141772,1740934296152,-500.0,0.00028016,2]
[355141773,1740934296162,-588.66,0.00028016,2]
[355141774,1740934296173,-500.0,0.00028016,2]
[355141775,1740934296182,-1763.62,0.00028016,2]
[355141776,1740934296192,-1461.0,0.00028016,2]
[355141777,1740934296202,-500.0,0.00028016,2]
[355141778,1740934296212,-500.0,0.00028016,2]
[355141779,1740934296223,-500.0,0.00028016,2]
[355141780,1740934296234,-510.32,0.00028016,2]
[355141781,1740934296245,-781.22,0.00028016,2]
[355141782,1740934296256,-500.0,0.00028016,2]
[355141783,1740934296270,-974.41,0.00028016,2]
[355141784,1740934296281,-1077.96,0.00028016,2]
[355141785,1740934296292,-500.0,0.00028016,2]
[355141786,1740934296302,-774.86,0.00028016,2]
[355141787,1740934296313,-500.0,0.00028016,2]
[355141788,1740934296509,-1184.41,0.00028016,2]
[355141789,1740934296524,-500.0,0.00028016,2]
[355141790,1740934296535,-500.0,0.00028016,2]
[355141791,1740934296548,-602.5,0.00028016,2]
[355141792,1740934296560,-500.0,0.00028016,2]
[355141793,1740934296573,-1735.26,0.00028016,2]
[355141794,1740934296585,-500.0,0.00028016,2]
[355141795,1740934296596,-500.0,0.00028016,2]
[355141796,1740934296607,-634.71,0.00028016,2]
[355141797,1740934296618,-500.0,0.00028016,2]
[355141798,1740934296628,-500.0,0.00028016,2]
[355141799,1740934296638,-500.0,0.00028016,2]
[355141800,1740934296648,-500.0,0.00028016,2]
[355141801,1740934296658,-2801.28,0.00028016,2]
[355141802,1740934296668,-493.17,0.00028016,2]
[355141803,1740934296679,-756.78,0.00028016,2]
[355141804,1740934296689,-731.38,0.00028016,2]
[355141805,1740934296700,-610.68,0.00028016,2]
[355141806,1740934296713,-500.0,0.00028016,2]
[355141807,1740934296725,-4232.49696055,0.00028016,2]
[355141808,1740934296749,-613.47303945,0.00028016,2]
[355141809,1740934296762,-2384.18,0.00028016,2]
[355141810,1740934296777,-214.32703555,0.00028016,2]
[355141811,1740934297150,-285.67296445,0.00028016,2]
[355141812,1740934297161,-408.49703554,0.00028016,2]
[355141813,1740934297191,-500.0,0.00026371,2]
[355141814,1740934297202,-91.50296446,0.00028016,2]
[355141815,1740934297213,-500.0,0.00028016,2]
[355141816,1740934297224,-500.0,0.00028016,2]
[355141817,1740934297235,-500.0,0.00028016,2]
[355141818,1740934297247,-500.0,0.00028017,2]
[355141819,1740934297258,-500.0,0.00028017,2]
[355141820,1740934297274,-500.0,0.00028017,2]
[355141821,1740934297285,-561.66508112,0.00028017,2]
[355141822,1740934297295,-500.0,0.00028017,2]
[355141823,1740934297306,-500.0,0.00028017,2]
[355141824,1740934297316,-500.0,0.00028017,2]
[355141825,1740934297326,-500.0,0.00028017,2]
[355141826,1740934297336,-498.01165605,0.00028017,2]
[355141827,1740934297345,-500.0,0.00028017,2]
[355141828,1740934297357,-500.0,0.00028017,2]
[355141829,1740934297367,-509.05267868,0.00028017,2]
[355141830,1740934297379,-500.0,0.00028017,2]
[355141831,1740934297389,-500.0,0.00028017,2]
[355141832,1740934297399,-500.0,0.00028017,2]
[355141833,1740934297410,-408.15048632,0.00028017,2]
[355141834,1740934297423,-99.87097021,0.00028017,2]
[355141835,1740934297432,-500.0,0.00028017,2]
[355141836,1740934297444,-500.0,0.00028017,2]
[355141837,1740934297455,-500.0,0.00028017,2]
[355141838,1740934297465,-513.57,0.00028017,2]
[355141839,1740934297475,-5.29002999,0.00028017,2]
[355141840,1740934297487,-343.66322987,0.00028017,2]
[355141841,1740934297499,-151.04674014,0.00028017,2]
[355141842,1740934297509,-117.03325986,0.00028017,2]
[355141843,1740934297574,-500.0,0.00026372,2]
[355141844,1740934297584,-500.0,0.00026372,2]
[355141845,1740934297595,-382.96674014,0.00028017,2]
[355141846,1740934297606,-500.0,0.00028017,2]
[355141847,1740934297616,-500.0,0.00028017,2]
[355141848,1740934297627,-500.0,0.00028017,2]
[355141849,1740934297637,-500.0,0.00028017,2]
[355141850,1740934297647,-409.89,0.00028017,2]
[355141851,1740934297659,-437.65899383,0.00028017,2]
[355141852,1740934297670,-199.44,0.00028017,2]
[355141853,1740934297681,-500.0,0.00028017,2]
[355141854,1740934297692,-500.0,0.00028017,2]
[355141855,1740934297705,-500.0,0.00028017,2]
[355141856,1740934297722,-539.43,0.00028017,2]
[355141857,1740934297734,-527.27,0.00028017,2]
[355141858,1740934297744,-283.56,0.00028017,2]
[355141859,1740934297757,-500.0,0.00028017,2]
[355141860,1740934297774,-500.0,0.00028017,2]
[355141861,1740934297784,-500.0,0.00028017,2]
[355141862,1740934297794,-500.0,0.00028017,2]
[355141863,1740934297805,-500.0,0.00028017,2]
[355141864,1740934297816,-500.0,0.00028017,2]
[355141865,1740934297829,-570.27,0.00028017,2]
[355141866,1740934297840,-500.0,0.00028017,2]
[355141867,1740934297852,-500.0,0.00028017,2]
[355141868,1740934297864,-500.0,0.00028017,2]
[355141869,1740934297876,-380.65659453,0.00028017,2]
[355141870,1740934297889,-119.34340547,0.00028017,2]
[355141871,1740934297900,-138.09055258,0.00028017,2]
[355141872,1740934297915,-361.90944742,0.00028017,2]
[355141873,1740934297926,-542.62,0.00028017,2]
[355141874,1740934297937,-500.0,0.00028017,2]
[355141875,1740934297947,-500.0,0.00028017,2]
[355141876,1740934297958,-564.57,0.00028017,2]
[355141877,1740934297970,-500.0,0.00028017,2]
[355141878,1740934297981,-500.0,0.00028017,2]
[355141879,1740934297992,-500.0,0.00028017,2]
[355141880,1740934298002,-500.0,0.00028017,2]
[355141881,1740934298012,-165.79752156,0.00028017,2]
[355141882,1740934298029,-334.20247844,0.00028017,2]
[355141883,1740934298039,-14.69604588,0.00028017,2]
[355141884,1740934298055,-485.30395412,0.00028017,2]
[355141885,1740934298067,-500.0,0.00028017,2]
[355141886,1740934298079,-504.45,0.00028017,2]
[355141887,1740934298091,-548.39,0.00028017,2]
[355141888,1740934298103,-500.0,0.00028017,2]
[355141889,1740934298115,-501.48,0.00028017,2]
[355141890,1740934298128,-500.0,0.00028017,2]
[355141891,1740934298139,-500.0,0.00028017,2]
[355141892,1740934298151,-500.0,0.00028017,2]
[355141893,1740934298164,-500.0,0.00028017,2]
[355141894,1740934298176,-1182.18,0.00028017,2]
[355141895,1740934298187,-500.0,0.00028017,2]
[355141896,1740934298198,-410.67,0.00028017,2]
[355141897,1740934298210,-500.0,0.00028017,2]
[355141898,1740934298221,-500.0,0.00028017,2]
[355141899,1740934298232,-556.35,0.00028017,2]
[355141900,1740934298245,-649.21918065,0.00028017,2]
[355141901,1740934298256,-500.0,0.00028017,2]
[355141902,1740934298272,-516.56,0.00028017,2]
[355141903,1740934298282,-500.0,0.00028017,2]
[355141904,1740934298292,-680.67,0.00028017,2]
[355141905,1740934298302,-500.0,0.00028017,2]
[355141906,1740934298313,-500.0,0.00028017,2]
[355141907,1740934298324,-500.0,0.00028017,2]
[355141908,1740934298335,-500.0,0.00028017,2]
[355141909,1740934298345,-587.6,0.00028017,2]
[355141910,1740934298355,-500.0,0.00028017,2]
[355141911,1740934298365,-500.0,0.00028017,2]
[355141912,1740934298376,-500.0,0.00028017,2]
[355141913,1740934298388,-500.0,0.00028017,2]
[355141914,1740934298399,-500.0,0.00028017,2]
[355141915,1740934298411,-500.0,0.00028017,2]
[355141916,1740934298422,-726.88,0.00028017,2]
[355141917,1740934298434,-500.0,0.00028017,2]
[355141918,1740934298444,-500.0,0.00028017,2]
[355141919,1740934298453,-500.0,0.00028017,2]
[355141920,1740934298463,-661.59,0.00028017,2]
[355141921,1740934298474,-802.77,0.00028017,2]
[355141922,1740934298484,-500.0,0.00028017,2]
[355141923,1740934298495,-500.0,0.00028017,2]
[355141924,1740934298504,-500.0,0.00028017,2]
[355141925,1740934298514,-500.0,0.00028017,2]
[355141926,1740934298529,-500.0,0.00028017,2]
[355141927,1740934298540,-500.0,0.00028017,2]
[355141928,1740934298551,-1069.61,0.00028017,2]
[355141929,1740934298561,-1034.02,0.00028017,2]
[355141930,1740934298571,-500.0,0.00028017,2]
[355141931,1740934298581,-1007.72,0.00028017,2]
[355141932,1740934298591,-500.0,0.00028017,2]
[355141933,1740934298603,-500.0,0.00028017,2]
[355141934,1740934298614,-596.18,0.00028017,2]
[355141935,1740934298624,-500.0,0.00028017,2]
[355141936,1740934298635,-500.0,0.00028017,2]
[355141937,1740934298645,-887.68,0.00028017,2]
[355141938,1740934298655,-500.0,0.00028017,2]
[355141939,1740934298665,-500.0,0.00028017,2]
[355141940,1740934298675,-500.0,0.00028017,2]
[355141941,1740934298685,-500.0,0.00028017,2]
[355141942,1740934298696,-500.0,0.00028017,2]
[355141943,1740934298706,-512.73,0.00028017,2]
[355141944,1740934298718,-500.0,0.00028017,2]
[355141945,1740934298729,-796.29,0.00028017,2]
[355141946,1740934298739,-500.0,0.00028017,2]
[355141947,1740934298749,-500.0,0.00028017,2]
[355141948,1740934298763,-512.31,0.00028017,2]
[355141949,1740934298778,-500.0,0.00028017,2]
[355141950,1740934298787,-504.61,0.00028017,2]
[355141951,1740934298799,-500.0,0.00028017,2]
[355141952,1740934298811,-605.32549857,0.00028017,2]
[355141953,1740934298822,-500.0,0.00028017,2]
[355141954,1740934298833,-613.62,0.00028017,2]
[355141955,1740934298846,-500.0,0.00028017,2]
[355141956,1740934298858,-500.0,0.00028017,2]
[355141957,1740934298868,-535.57816341,0.00028017,2]
[355141958,1740934298880,-767.83,0.00028017,2]
[355141959,1740934298890,-776.69,0.00028017,2]
[355141960,1740934298900,-285.52,0.00028017,2]
[355141961,1740934298910,-500.0,0.00028017,2]
[355141962,1740934298921,-523.84,0.00028017,2]
[355141963,1740934298931,-500.0,0.00028017,2]
[355141964,1740934298941,-940.2,0.00028017,2]
[355141965,1740934298951,-790.97,0.00028017,2]
[355141966,1740934298961,-553.5,0.00028017,2]
[355141967,1740934298971,-1094.02,0.00028017,2]
[355141968,1740934298980,-600.93,0.00028017,2]
[355141969,1740934298990,-1052.79,0.00028017,2]
[355141970,1740934299000,-500.0,0.00028017,2]
[355141971,1740934299010,-613.98,0.00028017,2]
[355141972,1740934299028,-500.0,0.00028017,7]
[355141973,1740934299039,-500.0,0.00028017,2]
[355141974,1740934299051,-553.98,0.00028017,2]
[355141975,1740934299064,-500.0,0.00028017,2]
[355141976,1740934299076,-500.0,0.00028017,2]
[355141977,1740934299087,-500.0,0.00028017,2]
[355141978,1740934299100,-500.0,0.00028017,2]
[355141979,1740934299111,-500.0,0.00028017,2]
[355141980,1740934299121,-588.04,0.00028017,2]
[355141981,1740934299132,-641.32,0.00028017,2]
[355141982,1740934299142,-500.0,0.00028017,2]
[355141983,1740934299152,-500.0,0.00028017,2]
[355141984,1740934299163,-500.0,0.00028017,2]
[355141985,1740934299174,-500.0,0.00028017,2]
[355141986,1740934299186,-884.29,0.00028017,2]
[355141987,1740934299196,-500.0,0.00028017,2]
[355141988,1740934299206,-1045.02,0.00028017,2]
[355141989,1740934299216,-500.0,0.00028017,2]
[355141990,1740934299226,-289.28,0.00028017,2]
[355141991,1740934299235,-918.11,0.00028017,2]
[355141992,1740934299246,-169.19,0.00028017,2]
[355141993,1740934299256,-500.0,0.00028017,2]
[355141994,1740934299270,-500.0,0.00028017,2]
[355141995,1740934299280,-1046.65,0.00028017,2]
[355141996,1740934299291,-500.0,0.00028017,2]
[355141997,1740934299302,-500.0,0.00028017,2]
[355141998,1740934299313,-340.65,0.00028017,2]
[355141999,1740934299323,-500.0,0.00028017,2]
[355142000,1740934299334,-500.0,0.00028017,2]
[355142001,1740934299344,-500.0,0.00028017,2]
[355142002,1740934299353,-500.0,0.00028017,2]
[355142003,1740934299363,-500.0,0.00028017,2]
[355142004,1740934299374,-500.0,0.00028017,2]
[355142005,1740934299383,-500.0,0.00028017,2]
[355142006,1740934299394,-500.0,0.00028017,2]
[355142007,1740934299405,-529.8,0.00028017,2]
[355142008,1740934299415,-500.0,0.00028017,2]
[355142009,1740934299425,-500.0,0.00028017,2]
[355142010,1740934299435,-500.0,0.00028017,2]
[355142011,1740934299445,-612.24404387,0.00028038,4]
[355142012,1740934299455,-7965.96944,0.00028066,2]
[355142013,1740934299465,-659.71433511,0.00028126,2]
[355142014,1740934299476,-537.47574185,0.00028126,2]
[355142015,1740934299487,-200.0,0.00028128,2]
[355142016,1740934299498,-3521.23862221,0.0002819,2]
[355142017,1740934299510,-16742.04263499,0.00028191,2]
[355142018,1740934299524,-612.24404387,0.00028245,5]
[355142019,1740934299535,-1876.76,0.00028289,2]
[355142020,1740934299545,-1549.45,0.00028289,2]
[355142021,1740934299556,-500.0,0.00028289,2]
[355142022,1740934299568,-1640.73,0.00028289,2]
[355142023,1740934299578,-735.42,0.00028289,2]
[355142024,1740934299590,-1038.58,0.00028289,2]
[355142025,1740934299600,-1324.37,0.00028289,2]
[355142026,1740934299612,-1030.42,0.00028289,2]
[355142027,1740934299623,-1220.49,0.00028289,2]
[355142028,1740934299635,-1008.61,0.00028289,2]
[355142029,1740934299647,-974.65,0.00028289,2]
[355142030,1740934299657,-796.26,0.00028289,2]
[355142031,1740934299667,-1883.74,0.00028289,2]
[355142032,1740934299677,-1450.26,0.00028289,2]
[355142033,1740934299687,-1000.0,0.00028289,2]
[355142034,1740934299697,-1403.46,0.00028289,2]
[355142035,1740934299711,-163.4,0.00028289,2]
[355142036,1740934299725,-500.0,0.00028289,2]
[355142037,1740934299736,-746.03,0.00028289,2]
[355142038,1740934299747,-816.44,0.00028289,2]
[355142039,1740934299760,-1361.09,0.00028289,2]
[355142040,1740934299777,-500.0,0.00028289,2]
[355142041,1740934299789,-500.0,0.00028289,2]
[355142042,1740934299802,-971.76,0.00028289,2]
[355142043,1740934299815,-1747.03,0.00028289,2]
[355142044,1740934299826,-1287.02,0.00028289,2]
[355142045,1740934299838,-863.73,0.00028289,2]
[355142046,1740934299849,-735.96,0.00028289,2]
[355142047,1740934299860,-905.51,0.00028289,2]
[355142048,1740934299870,-982.53,0.00028289,2]
[355142049,1740934299881,-1390.21,0.00028289,2]
[355142050,1740934299892,-595.81,0.00028289,2]
[355142051,1740934299902,-583.19,0.00028289,2]
[355142052,1740934299911,-598.39,0.00028289,2]
[355142053,1740934299922,-500.0,0.00028289,2]
[355142054,1740934299934,-1233.81,0.00028289,2]
[355142055,1740934299945,-2920.05,0.00028289,2]
[355142056,1740934299955,-890.18,0.00028289,2]
[355142057,1740934299965,-500.0,0.00028289,2]
[355142058,1740934299975,-1042.46720909,0.00028289,2]
[355142059,1740934299991,-3173.86279091,0.00028289,2]
[355142060,1740934300002,-825.61,0.00028289,2]
[355142061,1740934300012,-1005.08,0.00028289,2]
[355142062,1740934300028,-721.2,0.00028289,2]
[355142063,1740934300040,-500.0,0.00028289,2]
[355142064,1740934300054,-500.0,0.00028289,2]
[355142065,1740934300065,-3081.8,0.00028289,2]
[355142066,1740934300077,-651.66,0.00028289,2]
[355142067,1740934300091,-513.67,0.00028289,2]
[355142068,1740934300102,-300.0,0.00028289,10]
[355142069,1740934300115,-1154.87409587,0.0002829,8]
[355142070,1740934300127,-31836.03599098,0.0002829,8]
[355142071,1740934300151,-411.132432,0.00026645,2]
[355142072,1740934300167,-88.867568,0.00026645,2]
[355142073,1740934300179,-998.29464574,0.0002829,8]
[355142074,1740934300194,-549.68015578,0.0002829,8]
[355142075,1740934300208,-357.71775507,0.0002829,8]
[355142076,1740934300222,-19329.10399943,0.0002829,8]
[355142077,1740934300236,-5356.4249,0.0002829,8]
[355142078,1740934300251,-45833.0,0.0002829,8]
[355142079,1740934300263,-134694.99999999,0.0002829,8]
[355142080,1740934300280,-7621.94437427,0.0002829,8]
[355142081,1740934300292,-1527.82163892,0.0002829,8]
[355142082,1740934300306,-4157.88797333,0.0002829,8]
[355142083,1740934300347,-500.0,0.00026646,2]
[355142084,1740934300357,-6227.5782878,0.0002829,8]
[355142085,1740934301224,-500.0,0.00026371,2]
[355142086,1740934301234,-386.27237535,0.00026372,2]
[355142087,1740934301244,-500.0,0.00026372,2]
[355142088,1740934301256,-500.0,0.00026372,2]
[355142089,1740934301269,-514.22871215,0.00026373,2]
[355142090,1740934301280,-500.0,0.00026373,2]
[355142091,1740934301291,-217.92035194,0.00026645,2]
[355142092,1740934301303,-282.07964806,0.00026645,2]
[355142093,1740934301314,-500.0,0.00026646,2]
[355142094,1740934301324,-500.0,0.00026646,2]
[355142095,1740934301334,-500.0,0.00026919,2]
[355142096,1740934301344,-500.0,0.00026919,2]
[355142097,1740934301355,-500.0,0.0002692,2]
[355142098,1740934301366,-500.0,0.0002692,2]
[355142099,1740934301377,-500.0,0.00027193,2]
[355142100,1740934301387,-500.0,0.00027193,2]
[355142101,1740934301398,-500.0,0.00027194,2]
[355142102,1740934301408,-500.0,0.00027194,2]
[355142103,1740934301418,-500.0,0.00027467,2]
[355142104,1740934301429,-500.0,0.00027741,2]
[355142105,1740934301438,-500.0,0.00028015,2]
[355142106,1740934301448,-2463.93607239,0.0002829,8]
[355142107,1740934301461,-5344.720468,0.0002829,8]
[355142108,1740934301473,-6436.7851135,0.0002829,8]
[355142109,1740934301484,-388347.77912838,0.0002829,8]
[355142110,1740934301495,-132857.87053065,0.0002829,8]
[355142111,1740934301507,-1013.98749928,0.0002829,8]
[355142112,1740934301529,-500.0,0.00028289,2]
[355142113,1740934301539,-3491.62293414,0.0002829,8]
[355142114,1740934301555,-91700.0,0.0002829,8]
[355142115,1740934301567,-689.53715879,0.0002829,8]
[355142116,1740934301589,-305.58403869,0.0002692,2]
[355142117,1740934301603,-194.41596131,0.0002692,2]
[355142118,1740934301613,-177.20201041,0.0002829,8]
[355142119,1740934301625,-402.11000017,0.0002829,8]
[355142120,1740934301636,-601.58246379,0.0002829,8]
[355142121,1740934301648,-402.03499982,0.0002829,8]
[355142122,1740934301659,-60601.25643683,0.0002829,8]
[355142123,1740934301669,-4716.52265692,0.0002829,15]
[355142124,1740934301678,-300.0,0.0002829,10]
[355142125,1740934301688,-582.32,0.0002829,2]
[355142126,1740934301699,-984.08,0.0002829,2]
[355142127,1740934301714,-500.0,0.0002829,2]
[355142128,1740934301725,-500.0,0.0002829,2]
[355142129,1740934301736,-975.84,0.0002829,2]
[355142130,1740934301746,-356.73,0.0002829,2]
[355142131,1740934301759,-456.22437722,0.0002829,2]
[355142132,1740934301777,-140.45562278,0.0002829,2]
[355142133,1740934301788,-500.0,0.0002829,2]
[355142134,1740934301801,-649.95,0.0002829,2]
[355142135,1740934301812,-500.0,0.0002829,2]
[355142136,1740934301823,-913.81,0.0002829,2]
[355142137,1740934301835,-500.0,0.0002829,2]
[355142138,1740934301845,-826.37,0.0002829,2]
[355142139,1740934301855,-500.0,0.0002829,2]
[355142140,1740934301866,-523.21,0.0002829,2]
[355142141,1740934301876,-325.94934101,0.0002829,2]
[355142142,1740934301889,-174.05065899,0.0002829,2]
[355142143,1740934301899,-500.0,0.0002829,2]
[355142144,1740934301910,-500.0,0.0002829,2]
[355142145,1740934301921,-500.0,0.0002829,2]
[355142146,1740934301931,-500.0,0.0002829,2]
[355142147,1740934301941,-500.0,0.0002829,2]
[355142148,1740934301952,-652.27,0.0002829,2]
[355142149,1740934301962,-603.66,0.0002829,2]
[355142150,1740934301973,-500.0,0.0002829,2]
[355142151,1740934301984,-959.87,0.0002829,2]
[355142152,1740934301994,-500.0,0.0002829,2]
[355142153,1740934302004,-273.088224,0.0002829,2]
[355142154,1740934302014,-500.0,0.0002829,2]
[355142155,1740934302027,-185.04,0.0002829,2]
[355142156,1740934302038,-500.0,0.0002829,2]
[355142157,1740934302048,-327.72,0.0002829,2]
[355142158,1740934302059,-500.0,0.0002829,2]
[355142159,1740934302070,-553.49,0.0002829,2]
[355142160,1740934302080,-500.0,0.0002829,2]
[355142161,1740934302091,-500.0,0.0002829,2]
[355142162,1740934302101,-291.695008,0.0002829,2]
[355142163,1740934302114,-47.484992,0.0002829,2]
[355142164,1740934302125,-586.59,0.0002829,2]
[355142165,1740934302135,-490.051962,0.0002829,2]
[355142166,1740934302145,-500.0,0.0002829,2]
[355142167,1740934302155,-612.36,0.0002829,2]
[355142168,1740934302166,-500.0,0.0002829,2]
[355142169,1740934302177,-500.0,0.0002829,2]
[355142170,1740934302187,-500.0,0.0002829,2]
[355142171,1740934302196,-500.0,0.0002829,2]
[355142172,1740934302205,-670.7333992,0.0002829,2]
[355142173,1740934302218,-2.0366008,0.0002829,2]
[355142174,1740934302228,-645.05,0.0002829,2]
[355142175,1740934302238,-500.0,0.0002829,2]
[355142176,1740934302248,-500.0,0.0002829,2]
[355142177,1740934302258,-500.0,0.0002829,2]
[355142178,1740934302268,-901.95,0.0002829,2]
[355142179,1740934302281,-1081.17,0.0002829,2]
[355142180,1740934302291,-500.0,0.0002829,2]
[355142181,1740934302302,-500.0,0.0002829,2]
[355142182,1740934302312,-1000.0,0.0002829,2]
[355142183,1740934302322,-839.39,0.0002829,2]
[355142184,1740934302331,-500.0,0.0002829,2]
[355142185,1740934302341,-500.0,0.0002829,2]
[355142186,1740934302350,-500.0,0.0002829,2]
[355142187,1740934302362,-320.4033992,0.0002829,2]
[355142188,1740934302374,-179.5966008,0.0002829,2]
[355142189,1740934302384,-1654.66,0.0002829,2]
[355142190,1740934302394,-500.0,0.0002829,2]
[355142191,1740934302403,-500.0,0.0002829,2]
[355142192,1740934302413,-500.0,0.0002829,2]
[355142193,1740934302423,-712.05,0.0002829,2]
[355142194,1740934302433,-959.72,0.0002829,2]
[355142195,1740934302442,-500.0,0.0002829,2]
[355142196,1740934302451,-500.0,0.0002829,2]
[355142197,1740934302462,-500.0,0.0002829,2]
[355142198,1740934302471,-1209.06,0.0002829,2]
[355142199,1740934302481,-500.0,0.0002829,2]
[355142200,1740934302492,-722.24,0.0002829,2]
[355142201,1740934302504,-500.0,0.0002829,2]
[355142202,1740934302514,-1134.81,0.0002829,2]
[355142203,1740934302528,-500.0,0.0002829,2]
[355142204,1740934302539,-500.0,0.0002829,2]
[355142205,1740934302551,-500.0,0.0002829,2]
[355142206,1740934302563,-500.0,0.0002829,2]
[355142207,1740934302574,-1428.61,0.0002829,2]
[355142208,1740934302585,-500.0,0.0002829,2]
[355142209,1740934302596,-500.0,0.0002829,2]
[355142210,1740934302608,-500.0,0.0002829,2]
[355142211,1740934302620,-2956.28,0.0002829,2]
[355142212,1740934302630,-500.0,0.0002829,2]
[355142213,1740934302641,-1296.11,0.0002829,2]
[355142214,1740934302652,-812.76,0.0002829,2]
[355142215,1740934302663,-500.0,0.0002829,2]
[355142216,1740934302675,-500.0,0.0002829,2]
[355142217,1740934302686,-961.1033992,0.0002829,2]
[355142218,1740934302700,-1648.9466008,0.0002829,2]
[355142219,1740934302714,-500.0,0.0002829,2]
[355142220,1740934302725,-1547.24,0.0002829,2]
[355142221,1740934302735,-744.75,0.0002829,2]